bitfinex/quotes_ETHUSD_20220215
["timestamp","ask_amount","ask_price","bid_price","bid_amount"]
[1644889434229,0.00629048,3014.0,3012.5,0.1658]
[1644889434430,0.406,3013.9,3012.5,0.1658]
[1644889434631,0.41228975,3013.8,3012.4,0.01082601]
[1644889435128,0.41228975,3013.8,3012.5,1.04047545]
[1644889435383,0.00628975,3013.8,3012.6,3.11659663]
[1644889435589,0.43252388,3014.2,3012.6,3.11659663]
[1644889435786,0.43252388,3014.2,3012.5,1.04047545]
[1644889435787,0.00628954,3013.8,3012.5,1.04047545]
[1644889435986,0.00628954,3013.8,3012.6,3.10700475]
[1644889436184,0.00628954,3013.8,3012.5,1.04047545]
[1644889436385,0.00628954,3013.8,3012.6,3.07045454]
[1644889436585,0.00628954,3013.8,3012.5,1.04047545]
[1644889436787,1.16452593,3014.0,3012.5,1.04047545]
[1644889436985,0.86452593,3014.0,3012.6,3.21245773]
[1644889437185,0.86452593,3014.0,3012.4,0.01082598]
[1644889437186,0.00628964,3013.8,3012.4,0.01082598]
[1644889437387,0.406,3013.7,3012.4,0.01082598]
[1644889437586,1.4020999,3013.7,3012.4,0.01082598]
[1644889437786,1.7020999,3013.7,3012.4,0.01082598]
[1644889437985,1.7020999,3013.7,3012.3,3.5]
[1644889437986,0.8718,3013.7,3012.3,3.5]
[1644889438189,0.706,3013.7,3012.2,3.2994]
[1644889438386,0.706,3013.7,3012.4,0.01082589]
[1644889438587,0.83017,3013.5,3012.4,0.01082589]
[1644889438787,0.406,3013.4,3012.4,0.01082589]
[1644889439232,1.24991181,3013.4,3012.1,0.02945823]
[1644889439432,1.24991181,3013.4,3012.4,0.01046042]
[1644889440033,0.406,3013.4,3012.4,0.01046042]
[1644889440436,0.406,3013.4,3012.1,0.02945823]
[1644889441839,0.00189277,3012.9,3012.1,0.02945823]
[1644889442041,0.406,3013.4,3012.9,0.00378553]
[1644889442439,0.706,3013.4,3012.9,0.00378553]
[1644889442640,0.83025,3013.3,3012.9,0.00378553]
[1644889444783,1.26582388,3014.2,3012.9,0.00378553]
[1644889445581,0.02652388,3014.2,3013.3,1.06313347]
[1644889446282,0.02652388,3014.2,3013.0,3.5]
[1644889446481,0.02652388,3014.2,3012.9,0.00378553]
[1644889446727,0.00630453,3013.9,3012.9,0.00378553]
[1644889446929,0.00630453,3013.9,3012.9,1.66323553]
[1644889447129,0.00630453,3013.9,3013.0,3.90033904]
[1644889447530,0.02652388,3014.2,3012.9,0.00378553]
[1644889447728,0.02652388,3014.2,3013.0,0.1658]
[1644889447929,0.00630453,3013.6,3013.1,0.82979]
[1644889448129,0.00630453,3013.6,3013.2,3.11294117]
[1644889448328,0.00630453,3013.6,3013.0,0.1658]
[1644889448928,0.02652388,3014.2,3013.0,0.1658]
[1644889449127,0.02652388,3014.2,3012.9,0.00378553]
[1644889449128,0.00630453,3013.5,3012.9,0.00378553]
[1644889449530,0.00630453,3013.5,3013.0,0.87667067]
[1644889449729,0.00630453,3013.5,3013.1,3.10617154]
[1644889449929,0.02521433,3013.9,3013.1,3.10617154]
[1644889450129,0.85645388,3014.2,3013.1,3.10617154]
[1644889450389,0.00630453,3013.5,3013.1,3.10617154]
[1644889450588,0.00630453,3013.5,3013.1,3.13026315]
[1644889451192,0.02652388,3014.2,3013.1,3.13026315]
[1644889451389,0.02652388,3014.2,3013.1,3.96007315]
[1644889451588,0.00630453,3013.5,3013.1,0.82981]
[1644889451789,0.00630453,3013.5,3013.2,0.1658]
[1644889452389,0.02652388,3014.2,3013.2,0.1658]
[1644889452590,0.02652388,3014.2,3013.3,1.6593614]
[1644889452791,0.00630453,3013.5,3013.4,3.64046923]
[1644889453593,0.02652388,3014.2,3013.4,3.64046923]
[1644889453798,0.02652388,3014.2,3013.8,1.11282442]
[1644889453994,0.02652388,3014.2,3013.9,3.13230688]
[1644889454226,0.02652388,3014.2,3013.8,1.11282442]
[1644889454629,0.02652388,3014.2,3013.4,3.54919678]
[1644889455229,0.03281266,3014.2,3013.4,3.54919678]
[1644889455629,0.03281266,3014.2,3013.7,1.03807852]
[1644889456032,0.02652388,3014.2,3013.3,0.1658]
[1644889456231,0.00628878,3014.1,3013.3,0.1658]
[1644889457031,0.00628878,3014.1,3013.3,1.2934596]
[1644889457231,0.82991,3014.1,3013.3,0.1658]
[1644889457432,0.00628878,3013.9,3012.9,0.01461147]
[1644889457885,0.406,3013.8,3012.9,0.01461147]
[1644889458086,0.00628878,3013.9,3013.3,1.18336272]
[1644889458488,0.85637388,3014.2,3013.3,1.18336272]
[1644889458686,0.00628878,3013.8,3012.9,3.51461141]
[1644889458892,1.66015,3013.7,3012.9,0.01461141]
[1644889459389,0.83008,3013.6,3012.9,0.01461141]
[1644889459588,0.00628878,3013.8,3013.1,1.09383528]
[1644889459589,0.1658,3013.8,3013.1,1.09383528]
[1644889459789,0.1658,3013.8,3013.2,3.06185906]
[1644889459989,0.00628836,3013.7,3013.1,1.09383528]
[1644889460188,0.00628836,3013.7,3013.2,3.16865994]
[1644889460891,0.82986,3014.1,3013.1,1.09383528]
[1644889461090,0.00628868,3013.7,3013.2,3.18517104]
[1644889461288,0.05167388,3014.2,3013.3,4.4]
[1644889461289,0.00796256,3014.2,3013.3,4.4]
[1644889461490,0.00796256,3014.2,3013.4,3.25969261]
[1644889461732,0.00796256,3014.2,3013.2,3.42245443]
[1644889461932,0.82993,3013.9,3012.9,0.01461132]
[1644889462130,0.82993,3013.9,3012.9,0.00378553]
[1644889462336,1.12993,3013.9,3012.9,0.00378553]
[1644889462530,0.3,3013.9,3012.9,0.00378553]
[1644889462732,1.66007,3013.7,3012.9,0.00378553]
[1644889463130,0.83002,3013.6,3012.9,0.00378553]
[1644889463544,0.1658,3014.1,3013.1,0.01082496]
[1644889463732,0.00622823,3014.4,3013.3,0.82969]
[1644889463932,0.00622823,3014.4,3013.1,0.01082496]
[1644889464133,0.00622823,3014.4,3013.4,1.04083206]
[1644889464335,0.83600823,3014.4,3013.4,1.04083206]
[1644889464532,0.82978,3014.4,3013.2,0.82984]
[1644889464734,0.82978,3014.4,3013.7,0.01082317]
[1644889464735,0.83600947,3014.4,3013.7,0.01082317]
[1644889465478,1.66004,3014.2,3013.7,0.01082317]
[1644889465676,1.66004,3014.2,3012.9,1.08106551]
[1644889465878,2.66004,3014.2,3012.9,1.08106551]
[1644889466078,2.66004,3014.2,3013.9,0.01082273]
[1644889466479,1.6602013,3014.0,3013.9,0.01082273]
[1644889466882,1.6602013,3014.0,3012.9,0.00378553]
[1644889466883,1.3,3014.0,3012.9,0.00378553]
[1644889467079,0.83007,3013.7,3012.9,0.00378553]
[1644889467482,0.83007,3013.7,3012.9,0.88617917]
[1644889468980,0.8299584,3014.1,3012.9,0.88617917]
[1644889468981,0.1658,3014.3,3013.0,3.07445355]
[1644889469237,2.4903454,3014.5,3013.0,3.07445355]
[1644889469238,0.1658,3014.5,3013.0,3.07445355]
[1644889469439,0.00187363,3014.4,3013.0,3.07445355]
[1644889469637,0.00187363,3014.4,3013.5,0.97890264]
[1644889469839,0.00187363,3014.4,3013.3,3.23606032]
[1644889470039,0.82984,3014.2,3013.2,3.06983671]
[1644889470237,0.82984,3014.2,3012.9,0.00378553]
[1644889470641,1.65983,3014.2,3012.9,0.00378553]
[1644889470839,0.82999,3014.2,3013.5,0.01082871]
[1644889471143,0.829981,3014.0,3013.5,0.01082871]
[1644889471339,1.12999,3014.2,3013.5,0.01082871]
[1644889471641,0.82999,3013.9,3013.2,1.17339635]
[1644889471839,0.82999,3013.9,3012.9,3.23158091]
[1644889472041,0.82999,3013.9,3012.9,3.1563279]
[1644889472641,0.82999,3013.9,3013.1,0.82992]
[1644889472881,0.82999,3013.9,3013.2,3.07232116]
[1644889473281,0.82999,3013.9,3013.1,1.79359079]
[1644889473684,0.82999,3013.9,3013.2,3.04104754]
[1644889474085,0.82999,3013.9,3013.1,1.79359079]
[1644889474483,0.82999,3013.9,3013.2,2.97894366]
[1644889474692,0.82999,3013.9,3013.2,3.80883366]
[1644889474983,0.00187442,3014.4,3013.2,3.80883366]
[1644889474984,0.00187442,3014.4,3013.2,3.8357031]
[1644889475184,0.1658,3014.5,3013.3,0.1658]
[1644889475384,0.1658,3014.5,3013.6,0.82963]
[1644889475584,0.00622927,3014.4,3013.7,3.79091567]
[1644889475783,0.00622927,3014.4,3013.7,4.62046567]
[1644889475983,0.00622927,3014.4,3014.1,0.87011657]
[1644889476627,0.05874173,3015.0,3013.8,3.29864016]
[1644889476828,0.00623009,3014.4,3013.9,0.01083343]
[1644889477031,0.00623009,3014.4,3013.9,0.84053343]
[1644889477232,0.00623009,3014.4,3014.0,3.07958242]
[1644889477528,0.00623009,3014.4,3014.0,3.11254246]
[1644889477729,0.82969,3014.6,3014.4,0.01246017]
[1644889477930,1.12969,3014.6,3014.4,0.01246017]
[1644889478129,1.12969,3014.6,3013.9,0.0108334]
[1644889478130,0.406,3014.5,3013.9,0.0108334]
[1644889478328,0.57769291,3014.4,3013.9,0.0108334]
[1644889478530,1.95997,3014.3,3013.9,0.0108334]
[1644889478741,1.12998,3014.2,3013.9,0.0108334]
[1644889478929,0.82998,3014.2,3013.3,1.03394088]
[1644889479129,0.82998,3014.2,3013.4,3.5]
[1644889479528,0.82998,3014.2,3013.5,0.82983]
[1644889480391,0.82998,3014.2,3013.7,0.00897266]
[1644889480996,1.82998,3014.2,3013.7,0.00897266]
[1644889481195,1.12998,3014.2,3013.7,0.00897266]
[1644889481397,1.12998,3014.2,3012.8,3.87901069]
[1644889481398,0.83,3014.0,3012.8,3.87901069]
[1644889481595,0.83,3014.0,3013.8,0.00897236]
[1644889482397,0.1658,3014.4,3013.8,0.00897236]
[1644889482603,1.3395,3014.7,3013.4,3.09398016]
[1644889482897,0.82969,3014.5,3013.7,0.84061706]
[1644889483098,0.00622394,3014.6,3013.8,4.16893399]
[1644889483297,0.00622394,3014.6,3013.9,1.65929]
[1644889483497,0.00622394,3014.6,3014.0,0.97464421]
[1644889483696,0.06110528,3015.0,3013.9,1.65929]
[1644889483899,1.6594494,3014.6,3013.0,4.72673314]
[1644889484126,0.83166261,3014.6,3013.2,1.6596]
[1644889484328,0.83166261,3014.6,3013.3,4.20988895]
[1644889484728,0.83166261,3014.6,3013.4,0.86676556]
[1644889484928,0.8297894,3014.6,3013.6,0.82983]
[1644889485327,0.8297894,3014.6,3013.8,0.0101047]
[1644889485328,0.83601345,3014.6,3013.8,0.0101047]
[1644889485827,0.82983,3014.1,3013.8,0.0101047]
[1644889486028,1.6597469,3014.1,3013.8,0.0101047]
[1644889486228,1.6597469,3014.1,3013.3,1.65965]
[1644889486829,1.6097469,3014.1,3013.3,1.65965]
[1644889487029,1.6097469,3014.1,3012.9,3.31691034]
[1644889487030,0.82991,3014.0,3012.9,0.00378553]
[1644889487234,1.66011,3013.6,3012.9,0.83381553]
[1644889487430,1.66011,3013.6,3012.9,0.00378553]
[1644889487887,7.2788,3014.3,3012.9,3.50378553]
[1644889488091,7.2788,3014.3,3013.0,1.65939]
[1644889488286,7.2788,3014.3,3013.2,0.82973]
[1644889488287,1.1757,3014.3,3013.2,0.82973]
[1644889488489,0.25,3014.5,3013.3,3.5]
[1644889488689,0.25,3014.5,3013.0,0.1658]
[1644889488888,1.15322363,3014.6,3013.6,1.84089183]
[1644889489090,0.82975,3014.3,3013.6,1.84089183]
[1644889489488,0.82975,3014.3,3013.7,0.82978]
[1644889490087,0.82975,3014.3,3013.8,0.0108483]
[1644889490292,0.77975,3014.3,3013.8,0.0108483]
[1644889491090,0.77975,3014.3,3012.9,0.00378553]
[1644889491292,0.77975,3014.3,3013.9,0.01084815]
[1644889491751,1.6095987,3014.3,3013.9,0.01084815]
[1644889492154,1.6095987,3014.3,3013.2,0.91993239]
[1644889492354,0.82995,3014.0,3013.2,0.91993239]
[1644889492552,0.82995,3014.0,3013.9,0.010848]
[1644889492956,0.83603946,3014.6,3013.9,0.010848]
[1644889492957,1.0,3014.4,3013.9,0.010848]
[1644889493153,0.00622436,3014.6,3013.9,0.840618]
[1644889493356,1.18056355,3014.8,3014.0,3.5]
[1644889493357,0.00236355,3014.8,3014.0,3.5]
[1644889493755,0.02489208,3015.2,3014.3,0.8293549]
[1644889493955,0.00239643,3015.0,3014.4,1.65887]
[1644889494153,0.02489208,3015.2,3014.4,1.65887]
[1644889494354,0.02489208,3015.2,3014.5,3.5]
[1644889494553,0.00239643,3015.6,3014.5,3.5]
[1644889494954,0.00239643,3015.6,3014.9,1.65876]
[1644889495154,0.00239643,3015.6,3015.0,1.65878]
[1644889495386,0.00239643,3015.6,3015.0,2.48822]
[1644889495785,0.83178643,3015.6,3015.0,2.48822]
[1644889495986,0.83178643,3015.6,3015.0,0.82944]
[1644889496586,0.83178643,3015.6,3015.1,0.82939]
[1644889496986,0.83178643,3015.6,3015.0,0.82944]
[1644889497686,0.83178643,3015.6,3014.8,3.31765]
[1644889497889,0.83178643,3015.6,3014.6,3.318]
[1644889498191,1.23778643,3015.6,3013.7,3.40277777]
[1644889498387,1.23778643,3015.6,3013.7,3.56857777]
[1644889498589,0.00620942,3015.3,3014.6,1.0498073]
[1644889498790,0.82954,3015.0,3014.6,0.82958]
[1644889498989,0.00239643,3014.9,3014.6,0.82958]
[1644889499647,0.00620942,3014.9,3014.3,1.65914]
[1644889499850,0.00620942,3014.9,3014.6,1.12839096]
[1644889500248,0.82959,3014.8,3014.6,1.12839096]
[1644889500557,0.00239643,3014.8,3014.6,1.12839096]
[1644889500752,0.00239643,3015.6,3014.7,3.11633448]
[1644889500951,7.8958,3015.8,3014.7,3.11633448]
[1644889500952,0.00239643,3015.7,3014.7,3.11633448]
[1644889501149,0.00620942,3014.9,3014.7,3.11633448]
[1644889501548,0.02483275,3015.4,3014.7,6.43391368]
[1644889501850,0.96663669,3015.7,3015.0,0.82913]
[1644889502048,0.00238445,3015.6,3015.0,0.82913]
[1644889502247,0.00238445,3015.6,3015.1,3.5]
[1644889502449,0.00238445,3015.6,3015.4,0.97053853]
[1644889502749,7.5056097,3016.4,3015.4,0.97053853]
[1644889502981,7.5056097,3016.4,3015.6,0.82925]
[1644889502982,0.00236066,3016.3,3015.6,0.82925]
[1644889503383,0.00236066,3016.3,3015.5,3.5]
[1644889503384,0.00613181,3015.7,3015.5,3.5]
[1644889503580,0.00613181,3015.7,3015.2,0.84003375]
[1644889503780,0.00613181,3015.7,3015.5,3.3166943]
[1644889503980,0.00613181,3015.7,3015.5,4.9749943]
[1644889504184,0.00236066,3016.3,3015.6,3.5]
[1644889504380,0.00236066,3016.3,3015.5,4.9749943]
[1644889504581,0.00236066,3016.3,3015.6,3.5]
[1644889504582,0.00613181,3015.8,3015.6,3.5]
[1644889504980,0.00613181,3015.8,3015.5,2.4876466]
[1644889505181,0.00613181,3015.8,3015.5,1.65843]
[1644889505381,0.00236066,3016.7,3015.5,1.65843]
[1644889505581,0.8292,3016.5,3016.0,1.11941675]
[1644889505782,0.02452316,3016.3,3016.0,1.11941675]
[1644889506182,0.1658,3016.9,3016.0,1.11941675]
[1644889506183,7.48,3016.7,3016.0,1.11941675]
[1644889506384,7.48,3016.7,3015.5,1.65839]
[1644889506387,7.48234886,3016.7,3015.5,1.65839]
[1644889506831,1.0,3016.6,3015.5,1.65839]
[1644889507033,1.0,3016.6,3015.4,0.008]
[1644889507034,1.23748886,3016.5,3015.4,0.008]
[1644889507231,2.06697886,3016.5,3015.4,0.008]
[1644889507432,5.1,3016.4,3015.3,0.83682484]
[1644889507631,0.57394886,3016.3,3015.3,0.83682484]
[1644889508033,0.57394886,3016.3,3015.7,0.010888]
[1644889508034,0.82952,3016.2,3015.7,0.010888]
[1644889508232,0.57394886,3016.1,3015.7,0.010888]
[1644889508433,0.00234886,3016.2,3015.7,0.010888]
[1644889508635,0.00234886,3016.0,3015.7,0.010888]
[1644889508931,0.4120696,3016.5,3015.7,0.010888]
[1644889508932,0.406,3016.1,3015.7,0.010888]
[1644889509133,0.82949,3015.9,3014.8,0.82956]
[1644889509334,0.40834886,3015.8,3015.7,0.01054725]
[1644889509533,0.35834886,3015.8,3015.7,0.01054725]
[1644889510384,0.35834886,3015.8,3014.6,0.02945823]
[1644889510385,0.82965,3015.5,3014.6,0.02945823]
[1644889510582,0.406,3015.4,3014.6,0.02945823]
[1644889510782,0.40833711,3015.4,3014.6,0.02945823]
[1644889511385,0.40833711,3015.4,3014.6,1.12365195]
[1644889511586,0.8296,3015.2,3014.7,0.001]
[1644889511790,0.40833711,3015.1,3014.8,0.01054981]
[1644889512386,0.70833711,3015.1,3014.8,0.01054981]
[1644889512588,0.70833711,3015.1,3014.0,0.1668]
[1644889512787,2.36795681,3015.1,3013.7,1.66046]
[1644889512987,2.36795681,3015.1,3014.8,0.01054996]
[1644889513387,0.82976,3015.0,3014.8,0.01054996]
[1644889513587,1.23576,3015.0,3014.8,0.01054996]
[1644889513789,1.23576,3015.0,3013.7,0.001]
[1644889513790,3.06557,3015.0,3013.7,0.001]
[1644889513987,3.0155971,3015.0,3013.7,0.001]
[1644889514240,3.0155971,3015.0,3014.7,0.01059972]
[1644889514241,2.48946,3014.8,3014.7,0.01059972]
[1644889514443,3.89546,3014.8,3014.7,0.01059972]
[1644889514740,4.19546,3014.8,3014.7,0.01059972]
[1644889514940,4.19546,3014.8,3014.4,0.3275165]
[1644889515142,0.82988,3014.7,3014.4,0.3275165]
[1644889515341,2.65975,3014.7,3014.6,0.01060017]
[1644889515542,3.06575,3014.7,3014.6,0.01060017]
[1644889515846,1.65983,3014.4,3013.1,0.001]
[1644889516042,0.406,3014.3,3013.1,0.001]
[1644889516242,0.406,3014.3,3013.7,1.15432969]
[1644889516444,0.406,3014.3,3013.8,0.001]
[1644889516641,0.406,3014.3,3013.1,0.8308804]
[1644889516842,2.23592,3014.3,3013.1,0.8308804]
[1644889517043,2.23592,3014.3,3013.1,0.001]
[1644889517243,2.23592,3014.3,3013.1,3.17633362]
[1644889517442,2.23592,3014.3,3013.6,1.17540689]
[1644889517642,2.23592,3014.3,3013.7,0.001]
[1644889517881,2.18592,3014.3,3013.2,0.001]
[1644889518884,1.18592,3014.3,3013.2,0.001]
[1644889519085,1.18592,3014.3,3013.5,1.01233644]
[1644889519283,2.18592,3014.3,3013.6,0.001]
[1644889519584,1.18592,3014.3,3013.6,0.001]
[1644889519783,1.18592,3014.3,3013.0,0.001]
[1644889519784,2.18592,3014.3,3013.0,0.001]
[1644889519986,2.18592,3014.3,3013.2,0.82991]
[1644889520184,2.18592,3014.3,3013.8,0.00906726]
[1644889520583,2.18592,3014.3,3013.8,0.01006726]
[1644889520987,2.18592,3014.3,3013.8,0.001]
[1644889521184,1.18592,3014.3,3013.8,0.001]
[1644889521388,0.04999999,3014.6,3013.9,0.01089625]
[1644889521635,1.17619999,3014.8,3013.9,0.01189625]
[1644889521835,2.73959,3014.9,3013.9,0.01189625]
[1644889522035,2.48959,3014.9,3013.9,0.01089625]
[1644889522241,2.48959,3014.9,3013.9,0.83071]
[1644889522435,0.82965,3014.7,3014.2,0.0108952]
[1644889522637,0.406,3014.6,3014.2,0.0108952]
[1644889522834,2.06593,3014.6,3014.2,0.0108952]
[1644889523436,1.18764769,3014.5,3013.0,2.01134935]
[1644889523636,0.406,3014.4,3013.1,3.501]
[1644889523838,0.83003,3014.1,3013.2,0.001]
[1644889524035,0.406,3014.0,3013.2,0.001]
[1644889524239,0.406,3013.9,3013.2,0.001]
[1644889524436,0.406,3013.9,3013.0,0.001]
[1644889524437,1.4019,3013.9,3013.0,0.001]
[1644889524636,1.4019,3013.9,3012.9,0.00378553]
[1644889524837,0.3,3013.8,3012.9,0.00378553]
[1644889525036,0.3,3013.8,3013.4,0.01088926]
[1644889525037,0.83024,3013.6,3013.4,0.01088926]
[1644889525236,0.83024,3013.6,3012.9,0.00378553]
[1644889525237,5.506,3013.5,3012.9,7.479e-05]
[1644889525483,3.06286,3013.5,3012.7,0.04356769]
[1644889525683,1.0,3013.4,3012.7,0.04356769]
[1644889525883,0.406,3013.3,3011.9,0.00978386]
[1644889526082,1.23636,3013.3,3011.9,0.00878386]
[1644889526283,1.23636,3013.3,3011.4,1.6606]
[1644889526284,0.406,3013.3,3012.0,1.07258518]
[1644889526487,0.406,3013.3,3012.1,0.001]
[1644889526683,0.83026,3013.2,3012.1,0.001]
[1644889526985,0.406,3013.1,3012.0,0.83904126]
[1644889527186,0.83025,3012.8,3012.0,0.00978386]
[1644889527383,0.83025,3012.8,3011.8,0.00978386]
[1644889527585,0.83025,3012.8,3011.8,0.00878386]
[1644889527586,1.66065,3012.8,3011.8,0.00878386]
[1644889527785,0.406,3012.7,3011.8,0.00878386]
[1644889528184,0.83043,3012.5,3011.4,0.1658]
[1644889528384,0.83043,3012.5,3011.2,0.001]
[1644889528385,0.406,3012.4,3011.5,0.00878386]
[1644889528585,0.406,3012.4,3011.2,0.00978386]
[1644889528785,0.356,3012.4,3011.5,1.16019708]
[1644889528984,0.356,3012.4,3011.6,0.00978386]
[1644889528985,2.84762,3012.4,3011.6,0.00978386]
[1644889529251,0.13819996,3012.9,3012.4,1.14662947]
[1644889529252,0.166,3012.7,3012.4,1.14662947]
[1644889529450,0.406,3012.8,3012.4,1.14662947]
[1644889529660,0.13819996,3012.9,3012.4,1.14662947]
[1644889530253,0.13819996,3012.9,3012.4,1.97676947]
[1644889530452,0.83018,3012.8,3012.4,1.14662947]
[1644889530952,0.83018,3012.8,3012.5,0.01088348]
[1644889531952,0.83018,3012.8,3012.4,1.14662947]
[1644889532154,0.83018,3012.8,3012.5,0.01088348]
[1644889532354,0.78018,3012.8,3012.5,0.01088348]
[1644889533195,0.78018,3012.8,3012.4,1.14662947]
[1644889533396,0.78018,3012.8,3012.5,0.01088348]
[1644889534296,0.78018,3012.8,3012.4,1.14662947]
[1644889534495,0.78018,3012.8,3012.5,0.001]
[1644889534700,0.13819996,3012.9,3012.5,0.01182197]
[1644889535495,0.13819996,3012.9,3012.5,0.001]
[1644889535897,0.13819996,3012.9,3012.5,0.01182182]
[1644889536096,0.96835996,3012.9,3012.5,0.01182182]
[1644889536733,0.96835996,3012.9,3012.5,0.001]
[1644889537135,0.96835996,3012.9,3012.5,0.01182182]
[1644889537936,0.96835996,3012.9,3012.5,0.001]
[1644889538138,0.96835996,3012.9,3012.5,0.01188333]
[1644889538337,0.96835996,3012.9,3012.5,0.00622732]
[1644889538539,1.96835996,3012.9,3012.5,0.00622732]
[1644889538839,3.5,3012.6,3012.3,0.00878386]
[1644889539039,0.406,3012.5,3012.1,0.04353984]
[1644889539240,0.406,3012.5,3010.7,3.0642]
[1644889539241,1.406,3012.5,3011.7,0.00878386]
[1644889539439,1.494796,3012.5,3011.5,0.00878386]
[1644889539641,1.494796,3012.5,3011.2,0.00878386]
[1644889539943,1.328996,3012.5,3011.3,0.8304473]
[1644889540140,1.328996,3012.5,3011.2,0.83922386]
[1644889540141,2.159486,3012.5,3011.4,3.50878386]
[1644889540399,2.23649,3012.5,3011.6,0.83038]
[1644889540600,2.23649,3012.5,3011.7,0.00878386]
[1644889541404,3.28378083,3012.5,3011.7,0.00878386]
[1644889541698,3.28378083,3012.5,3011.5,0.00878386]
[1644889541699,2.23649,3012.5,3011.5,0.00878386]
[1644889541899,2.23649,3012.5,3011.9,0.01087664]
[1644889541900,0.166,3012.4,3011.9,0.01087664]
[1644889542101,1.23645,3012.3,3011.9,0.01087664]
[1644889542303,2.23645,3012.3,3011.9,0.01087664]
[1644889542700,2.23645,3012.3,3011.5,0.00878386]
[1644889542902,3.37812102,3012.3,3011.5,0.00878386]
[1644889543100,3.37812102,3012.3,3011.9,0.01087664]
[1644889543703,2.23645,3012.3,3011.9,0.01087664]
[1644889543902,2.23645,3012.3,3011.5,0.05329695]
[1644889543903,2.23645,3012.3,3011.5,0.00978386]
[1644889544132,2.23645,3012.3,3011.6,1.66055]
[1644889544329,1.23645,3012.3,3011.6,1.4612105]
[1644889544731,0.83045,3012.3,3011.9,0.83028]
[1644889544933,0.83045,3012.3,3011.9,1.6605152]
[1644889545532,0.83045,3012.3,3011.6,1.6605487]
[1644889545732,0.83045,3012.3,3011.6,2.4909287]
[1644889545933,0.83045,3012.3,3011.6,5.52500642]
[1644889546133,0.83045,3012.3,3011.6,2.4909287]
[1644889546337,0.83045,3012.3,3011.4,1.66065]
[1644889546534,0.83045,3012.3,3011.4,3.5]
[1644889546736,0.83045,3012.3,3011.0,0.19479437]
[1644889546737,0.83045,3012.3,3011.7,0.01087727]
[1644889547740,0.83045,3012.3,3011.4,0.8303887]
[1644889547995,0.83045,3012.3,3011.7,0.0108773]
[1644889548797,7.4641,3012.7,3011.0,0.07231446]
[1644889548798,0.166,3012.8,3011.0,1.68967437]
[1644889549099,0.00618768,3012.4,3011.7,0.0108773]
[1644889549295,1.31299996,3012.9,3012.5,0.01237535]
[1644889549896,0.83031,3012.8,3012.5,0.01237535]
[1644889551640,0.83648262,3012.8,3012.5,0.01237535]
[1644889552443,0.83031,3012.8,3012.5,0.01237535]
[1644889552639,0.83648262,3012.8,3012.5,0.01237535]
[1644889553541,0.83031,3012.8,3012.5,0.01237535]
[1644889553941,0.83648262,3012.8,3012.5,0.01237535]
[1644889554841,0.83031,3012.8,3012.5,0.01237535]
[1644889555242,0.83648262,3012.8,3012.5,0.01237535]
[1644889556085,0.83031,3012.8,3012.5,0.01237535]
[1644889556484,0.83648262,3012.8,3012.5,0.01237535]
[1644889556883,1.83648262,3012.8,3012.5,0.01237535]
[1644889557084,0.83648262,3012.8,3012.5,0.01237535]
[1644889557283,0.83031,3012.8,3012.5,0.01237535]
[1644889557484,0.83648262,3012.8,3012.5,0.01237535]
[1644889558484,0.83031,3012.8,3012.5,0.01237535]
[1644889558684,0.83648262,3012.8,3012.5,0.01237535]
[1644889559535,0.83031,3012.8,3012.5,0.01237535]
[1644889559734,1.83031,3012.8,3012.5,0.01237535]
[1644889559937,0.83648262,3012.8,3012.5,0.01237535]
[1644889560135,1.83648262,3012.8,3012.5,0.01237535]
[1644889560739,0.83648262,3012.8,3012.5,0.01237535]
[1644889560937,0.83031,3012.8,3012.5,0.01237535]
[1644889561237,1.83648262,3012.8,3012.5,0.01237535]
[1644889561638,0.83648262,3012.8,3012.5,0.01237535]
[1644889562037,1.83031,3012.8,3012.5,0.01237535]
[1644889562438,1.83648262,3012.8,3012.5,0.01237535]
[1644889562637,0.478,3012.7,3012.5,0.01237535]
[1644889562888,0.83029,3012.6,3012.5,0.01237535]
[1644889563090,1.30829,3012.6,3012.5,7.535e-05]
[1644889563291,1.30829,3012.6,3011.3,0.001]
[1644889563292,4.79954987,3012.5,3011.3,0.001]
[1644889563491,3.8001,3012.4,3012.0,0.01087666]
[1644889563689,4.8001,3012.4,3012.0,0.01087666]
[1644889564290,0.83053,3012.2,3012.0,0.01087666]
[1644889564489,0.478,3012.1,3011.1,0.00975245]
[1644889564692,0.478,3012.1,3011.4,0.04351544]
[1644889564693,2.49183,3012.0,3011.4,0.04351544]
[1644889564890,0.478,3011.9,3011.4,0.04351544]
[1644889565290,1.478,3011.9,3011.4,0.04351544]
[1644889565691,1.478,3011.9,3011.1,0.00875245]
[1644889565692,2.30855,3011.9,3011.1,0.00875245]
[1644889565899,0.83061,3011.8,3011.5,0.01087799]
[1644889566938,0.83061,3011.8,3011.2,0.00975245]
[1644889567139,0.83061,3011.8,3011.0,0.83051]
[1644889567140,0.83061,3011.8,3011.5,0.01087799]
[1644889568039,0.83061,3011.8,3011.2,0.00875245]
[1644889568241,0.83061,3011.8,3011.5,0.01087799]
[1644889568843,0.83056,3011.7,3011.5,0.01087799]
[1644889569042,0.83056,3011.7,3011.0,0.05227094]
[1644889569043,0.83082,3011.6,3011.0,0.05227094]
[1644889569239,1.07712146,3011.3,3011.0,0.04351849]
[1644889569441,1.07712146,3011.3,3010.8,0.02879437]
[1644889569442,0.478,3011.2,3010.8,0.02879437]
[1644889570042,1.30882,3011.2,3010.8,0.02879437]
[1644889570243,0.83078,3011.1,3010.8,0.02879437]
[1644889570495,0.478,3011.0,3010.8,0.02879437]
[1644889570895,0.778,3011.0,3010.8,0.03910135]
[1644889571497,2.4398793,3011.0,3010.8,0.03910135]
[1644889571696,2.4398793,3011.0,3010.8,0.02879437]
[1644889571896,2.60896,3011.0,3010.8,0.02879437]
[1644889572697,3.1397956,3011.0,3010.8,0.02879437]
[1644889573097,1.88301156,3010.8,3010.3,0.04123524]
[1644889573296,3.36101156,3010.8,3010.3,0.04123524]
[1644889573498,0.83095,3010.7,3010.3,0.04123524]
[1644889573700,0.478,3010.6,3010.3,0.04123524]
[1644889574134,1.0,3010.7,3010.6,0.95599999]
[1644889574335,2.6619,3010.8,3010.6,0.95599999]
[1644889574534,2.6619,3010.8,3010.6,0.96475244]
[1644889574535,0.478,3010.7,3010.6,0.96475244]